[Event "2nd Gujarat Open 2019"]
[Site "Ahmedabad, Gujarat"]
[Date "2019.09.25"]
[Round "6.18"]
[White "Jay Kundaliya"]
[Black "Souhardo Basak"]
[Result "0-1"]
[ECO "E81"]
[WhiteElo "2097"]
[BlackElo "2301"]
[Annotator "NA"]
[PlyCount "150"]
[EventDate "2019.09.22"]
[EventType "swiss"]
[EventCountry "IND"]
[SourceTitle "playchess.com"]
[Source "ChessBase"]
[SourceQuality "1"]
[TimeControl "5400+30"]

1. d4 {[%emt 0:01:03]} Nf6 {[%emt 0:00:00]} 2. c4 {[%emt 0:00:04]} g6 {[%emt 0:00:11]} 3. Nc3 {[%emt 0:00:05]} Bg7 {[%emt 0:00:04]} 4. e4 {[%emt 0:00:26]} d6 {[%emt 0:00:05]} 5. f3 {[%emt 0:01:10]} O-O {[%emt 0:00:13]} 6. Be3 {[%emt 0:00:04]} Nbd7 {[%emt 0:01:23]} 7. Bd3 {[%emt 0:02:44]} c5 {[%emt 0:00:43]} 8. d5 {[%emt 0:05:32]} Ne5 {[%emt 0:00:35]} 9. Nge2 {[%emt 0:10:35]} e6 10. dxe6 {[%emt 0:05:27]} Bxe6 {[%emt 0:04:55]} 11. b3 {[%emt 0:00:51]} b5 {[%emt 0:01:42]} 12. Nxb5 {[%emt 0:21:36]} Nfg4 13. fxg4 {[%emt 0:03:45]} Nxd3+ {[%emt 0:01:33]} 14. Qxd3 {[%emt 0:00:03]} Bxa1 {[%emt 0:00:24]} 15. O-O {[%emt 0:15:18]} Be5 {[%emt 0:00:09]} 16. h3 {[%emt 0:00:05]} Qd7 {[%emt 0:07:52]} 17. Bh6 {[%emt 0:01:44]} Rfe8 {[%emt 0:03:15]} 18. Bg5 {[%emt 0:00:25]} h6 {[%emt 0:11:41]} 19. Bxh6 {[%emt 0:04:53]} f6 {[%emt 0:00:40]} 20. Bf4 {[%emt 0:00:13]} Rad8 {[%emt 0:05:21]} 21. Nbc3 {[%emt 0:09:46]} Kg7 {[%emt 0:05:03]} 22. Be3 {[%emt 0:04:10]} g5 {[%emt 0:01:35]} 23. Rf3 {[%emt 0:01:51]} Bf7 {[%emt 0:02:27]} 24. Nd1 {[%emt 0:03:46]} Bg6 {[%emt 0:00:15]} 25. Nf2 {[%emt 0:00:04]} Qb7 {[%emt 0:00:38]} 26. Bd2 {[%emt 0:00:57]} Re6 {[%emt 0:02:34]} 27. Bc3 {[%emt 0:00:49]} Rd7 {[%emt 0:01:29]} 28. g3 {[%emt 0:02:08]} Re8 {[%emt 0:01:01]} 29. Kg2 {[%emt 0:00:16]} Red8 {[%emt 0:00:25]} 30. Qe3 {[%emt 0:00:54]} a5 31. h4 {[%emt 0:00:57]} gxh4 {[%emt 0:11:12]} 32. gxh4 {[%emt 0:00:02]} Re8 {[%emt 0:01:02]} 33. h5 {[%emt 0:01:19]} Bh7 {[%emt 0:00:05]} 34. Ng3 {[%emt 0:01:11]} Rde7 {[%emt 0:02:20]} 35. g5 {[%emt 0:00:53]} fxg5 {[%emt 0:00:40]} 36. Qxg5+ {[%emt 0:00:50]} Kh8 {[%emt 0:00:02]} 37. h6 {[%emt 0:00:48]} Bxc3 {[%emt 0:00:38]} 38. Rxc3 {[%emt 0:00:09]} Re6 {[%emt 0:00:16]} 39. Rf3 {[%emt 0:01:05]} Rg8 {[%emt 0:00:27]} 40. Qd2 {[%emt 0:00:11]} Bxe4 {[%emt 0:00:46]} 41. Nfxe4 {[%emt 0:01:30]} Qxe4 {[%emt 0:00:13]} 42. Kf2 {[%emt 0:00:13]} Qe5 {[%emt 0:00:42]} 43. Qxa5 {[%emt 0:00:55]} Qb2+ {[%emt 0:00:21]} 44. Kf1 {[%emt 0:00:11]} Qc1+ {[%emt 0:01:09]} 45. Kf2 {[%emt 0:00:20]} Qb2+ {[%emt 0:01:16]} 46. Kf1 {[%emt 0:00:11]} Qc1+ {[%emt 0:00:43]} 47. Kf2 {[%emt 0:00:06]} Rxh6 {[%emt 0:00:04]} 48. Qc3+ {[%emt 0:00:07]} Qxc3 {[%emt 0:00:02]} 49. Rxc3 {[%emt 0:00:02]} Rh2+ {[%emt 0:00:13]} 50. Kf3 {[%emt 0:00:07]} Rxa2 {[%emt 0:00:12]} 51. Rd3 {[%emt 0:00:31]} Rg6 {[%emt 0:00:35]} 52. Nf5 {[%emt 0:00:53]} Rf6 {[%emt 0:00:20]} 53. Ke4 {[%emt 0:00:22]} Re2+ {[%emt 0:00:41]} 54. Re3 {[%emt 0:00:28]} Rf2 {[%emt 0:02:02]} 55. Rh3+ {[%emt 0:01:28]} Kg8 {[%emt 0:00:01]} 56. Ne7+ {[%emt 0:00:08]} Kf7 {[%emt 0:00:11]} 57. Nd5 {[%emt 0:00:10]} Re6+ {[%emt 0:02:24]} 58. Kd3 {[%emt 0:00:07]} Ree2 {[%emt 0:01:28]} 59. Rh7+ {[%emt 0:00:44]} Kg6 {[%emt 0:00:26]} 60. Rd7 {[%emt 0:00:34]} Re6 {[%emt 0:00:12]} 61. Nc7 {[%emt 0:01:56]} Ree2 {[%emt 0:02:28]} 62. Rxd6+ {[%emt 0:00:27]} Kf5 {[%emt 0:00:08]} 63. Nd5 {[%emt 0:00:34]} Ke5 {[%emt 0:00:42]} 64. Rc6 {[%emt 0:00:47]} Rd2+ {[%emt 0:00:39]} 65. Kc3 {[%emt 0:00:10]} Rc2+ {[%emt 0:00:52]} 66. Kd3 {[%emt 0:00:01]} Rfd2+ {[%emt 0:01:10]} 67. Ke3 {[%emt 0:00:02]} Rh2 {[%emt 0:01:17]} 68. Kd3 {[%emt 0:00:06]} Rb2 {[%emt 0:01:02]} 69. Kc3 {[%emt 0:00:06]} Rhc2+ {[%emt 0:02:35]} 70. Kd3 {[%emt 0:00:01]} Rc1 {[%emt 0:00:41]} 71. Rxc5 {[%emt 0:00:51]} Rxb3+ {[%emt 0:00:01]} 72. Kd2 {[%emt 0:00:01]} Rh1 {[%emt 0:00:02]} 73. Rc7 {[%emt 0:02:34]} Kd4 {[%emt 0:00:14]} 74. Kc2 {[%emt 0:01:00]} Rhb1 {[%emt 0:00:02]} 75. Nc3 {[%emt 0:00:56]} R3b2# {[%emt 0:00:03]} 0-1

[Event "2nd Gujarat Open 2019"]
[Site "Ahmedabad, Gujarat"]
[Date "2019.09.25"]
[Round "6.19"]
[White "Srija, Seshadri"]
[Black "Thanki, Hemal Karsanji"]
[Result "0-1"]
[ECO "B12"]
[WhiteElo "2270"]
[BlackElo "2098"]
[Annotator "NA"]
[PlyCount "121"]
[EventDate "2019.09.22"]
[EventType "swiss"]
[EventCountry "IND"]
[SourceTitle "playchess.com"]
[Source "ChessBase"]
[SourceQuality "1"]
[TimeControl "5400+30"]

1. e4 {[%emt 0:00:00]} c6 {[%emt 0:00:00]} 2. d4 {[%emt 0:00:00]} g6 {[%emt 0:00:00]} 3. Nc3 {[%emt 0:00:32]} d6 {[%emt 0:00:00]} 4. f4 {[%emt 0:00:15]} d5 {[%emt 0:00:00]} 5. e5 {[%emt 0:00:33]} h5 {[%emt 0:00:00]} 6. Nf3 {[%emt 0:01:13]} Nh6 {[%emt 0:00:07]} 7. Be3 {[%emt 0:01:55]} Qb6 {[%emt 0:02:44]} 8. Na4 {[%emt 0:02:32]} Qa5+ {[%emt 0:00:03]} 9. c3 {[%emt 0:00:12]} Bg4 {[%emt 0:00:56]} 10. Be2 {[%emt 0:03:36]} e6 11. Nc5 {[%emt 0:02:20]} Nf5 {[%emt 0:13:11]} 12. Bf2 {[%emt 0:00:57]} Nd7 {[%emt 0:02:15]} 13. b4 {[%emt 0:05:43]} Qc7 {[%emt 0:00:41]} 14. h3 {[%emt 0:06:44]} Bxf3 {[%emt 0:00:15]} 15. Bxf3 {[%emt 0:00:01]} h4 {[%emt 0:00:26]} 16. O-O {[%emt 0:02:45]} Nxc5 {[%emt 0:02:30]} 17. dxc5 {[%emt 0:00:16]} Bh6 {[%emt 0:00:26]} 18. Qc1 {[%emt 0:01:57]} f6 {[%emt 0:00:29]} 19. Bd4 {[%emt 0:11:45]} fxe5 {[%emt 0:00:25]} 20. Bxe5 {[%emt 0:00:07]} Qxe5 {[%emt 0:00:06]} 21. fxe5 {[%emt 0:00:11]} Bxc1 {[%emt 0:00:03]} 22. Raxc1 {[%emt 0:00:22]} a5 {[%emt 0:14:35]} 23. a3 {[%emt 0:02:23]} Kd7 {[%emt 0:02:50]} 24. Bg4 {[%emt 0:03:55]} axb4 {[%emt 0:03:02]} 25. axb4 {[%emt 0:00:05]} Rhf8 {[%emt 0:05:24]} 26. Rfe1 {[%emt 0:11:06]} Ra2 {[%emt 0:01:59]} 27. c4 {[%emt 0:01:51]} Rb2 {[%emt 0:02:59]} 28. b5 {[%emt 0:03:06]} Ra8 {[%emt 0:05:10]} 29. cxd5 {[%emt 0:09:11]} exd5 {[%emt 0:01:53]} 30. bxc6+ {[%emt 0:10:11]} bxc6 {[%emt 0:00:19]} 31. Ra1 {[%emt 0:01:58]} Rxa1 {[%emt 0:03:20]} 32. Rxa1 {[%emt 0:00:01]} Rc2 {[%emt 0:00:16]} 33. Ra7+ {[%emt 0:00:20]} Ke6 {[%emt 0:00:05]} 34. Rg7 {[%emt 0:00:18]} Kxe5 {[%emt 0:03:25]} 35. Rxg6 {[%emt 0:00:05]} Ng3 {[%emt 0:13:03]} 36. Rxc6 {[%emt 0:01:51]} Kd4 {[%emt 0:00:03]} 37. Bd1 {[%emt 0:03:04]} Rc1 {[%emt 0:02:11]} 38. Kf2 {[%emt 0:00:14]} Rxd1 {[%emt 0:00:08]} 39. Kf3 {[%emt 0:00:03]} Ne4 {[%emt 0:02:32]} 40. Rh6 {[%emt 0:01:17]} Rd3+ {[%emt 0:05:00]} 41. Kf4 {[%emt 0:00:21]} Rg3 {[%emt 0:02:55]} 42. Rxh4 {[%emt 0:01:23]} Rxg2 {[%emt 0:00:05]} 43. c6 {[%emt 0:00:12]} Rf2+ {[%emt 0:00:20]} 44. Kg4 {[%emt 0:00:06]} Rc2 {[%emt 0:00:08]} 45. Rh6 {[%emt 0:00:06]} Ke5 {[%emt 0:01:17]} 46. Rh5+ {[%emt 0:00:58]} Ke6 {[%emt 0:01:26]} 47. Rh6+ {[%emt 0:00:16]} Ke5 {[%emt 0:04:21]} 48. Rh5+ {[%emt 0:00:08]} Kd6 {[%emt 0:00:02]} 49. Rh6+ {[%emt 0:00:07]} Kc7 {[%emt 0:00:08]} 50. Kf4 {[%emt 0:00:25]} Rxc6 {[%emt 0:00:12]} 51. Rh8 {[%emt 0:00:22]} Re6 {[%emt 0:02:17]} 52. h4 {[%emt 0:01:30]} Nd6 {[%emt 0:03:31]} 53. h5 {[%emt 0:02:20]} Re4+ {[%emt 0:00:05]} 54. Kf3 {[%emt 0:00:12]} Kd7 {[%emt 0:00:37]} 55. h6 {[%emt 0:03:09]} Nf7 {[%emt 0:00:14]} 56. Ra8 {[%emt 0:00:28]} Rh4 {[%emt 0:02:26]} 57. Kg3 {[%emt 0:00:43]} Rxh6 {[%emt 0:00:06]} 58. Kf4 {[%emt 0:00:03]} Rf6+ {[%emt 0:01:46]} 59. Ke3 {[%emt 0:00:07]} Kd6 {[%emt 0:00:57]} 60. Ra7 {[%emt 0:00:34]} Ne5 {[%emt 0:00:25]} 61. Kd4 0-1

[Event "2nd Gujarat Open 2019"]
[Site "Ahmedabad, Gujarat"]
[Date "2019.09.25"]
[Round "6.20"]
[White "Anadkat Kartavya"]
[Black "Gandhi, Anish"]
[Result "1/2-1/2"]
[ECO "B94"]
[WhiteElo "2088"]
[BlackElo "2201"]
[Annotator "NA"]
[PlyCount "117"]
[EventDate "2019.09.22"]
[EventType "swiss"]
[EventCountry "IND"]
[SourceTitle "playchess.com"]
[Source "ChessBase"]
[SourceQuality "1"]
[TimeControl "5400+30"]

1. e4 {[%emt 0:00:00]} c5 {[%emt 0:04:32]} 2. Nf3 {[%emt 0:00:00]} d6 {[%emt 0:00:10]} 3. d4 {[%emt 0:00:00]} cxd4 {[%emt 0:00:15]} 4. Nxd4 {[%emt 0:00:00]} Nf6 {[%emt 0:00:03]} 5. Nc3 {[%emt 0:00:00]} a6 {[%emt 0:00:02]} 6. Bg5 {[%emt 0:00:00]} Nbd7 {[%emt 0:00:08]} 7. Qe2 {[%emt 0:00:44]} g6 {[%emt 0:04:07]} 8. f4 {[%emt 0:00:42]} e5 {[%emt 0:02:08]} 9. fxe5 {[%emt 0:00:54]} dxe5 {[%emt 0:00:17]} 10. O-O-O {[%emt 0:02:49]} Qc7 {[%emt 0:02:44]} 11. Nf3 {[%emt 0:07:38]} Bg7 {[%emt 0:01:26]} 12. Nd5 {[%emt 0:09:29]} Nxd5 {[%emt 0:00:40]} 13. exd5 {[%emt 0:00:01]} Qd6 {[%emt 0:00:23]} 14. Nd2 {[%emt 0:06:17]} f5 {[%emt 0:04:32]} 15. Nc4 {[%emt 0:06:36]} Qc5 {[%emt 0:01:33]} 16. g4 {[%emt 0:04:33]} O-O {[%emt 0:05:02]} 17. gxf5 {[%emt 0:00:58]} gxf5 {[%emt 0:00:05]} 18. Bh3 {[%emt 0:04:26]} b5 {[%emt 0:17:30]} 19. Na5 {[%emt 0:06:26]} e4 {[%emt 0:02:28]} 20. Nc6 {[%emt 0:01:27]} Nf6 {[%emt 0:00:15]} 21. Be3 {[%emt 0:11:20]} Qd6 {[%emt 0:02:58]} 22. Rhg1 {[%emt 0:01:39]} Rf7 {[%emt 0:02:52]} 23. Qd2 {[%emt 0:11:19]} Bd7 {[%emt 0:05:43]} 24. Bf4 {[%emt 0:06:13]} Qxd5 {[%emt 0:05:43]} 25. Qxd5 {[%emt 0:01:29]} Nxd5 {[%emt 0:00:04]} 26. Rxd5 {[%emt 0:00:05]} Bxc6 {[%emt 0:00:04]} 27. Rd6 {[%emt 0:01:20]} Bd7 {[%emt 0:00:56]} 28. Rd5 {[%emt 0:00:30]} Bc6 {[%emt 0:00:04]} 29. Rd6 {[%emt 0:00:30]} Rc8 {[%emt 0:06:09]} 30. Be5 {[%emt 0:01:51]} e3 {[%emt 0:02:34]} 31. Bxf5 {[%emt 0:07:20]} Rxf5 {[%emt 0:00:29]} 32. Bxg7 {[%emt 0:00:21]} Kf7 {[%emt 0:00:18]} 33. Bh6 {[%emt 0:02:05]} Ke7 {[%emt 0:06:05]} 34. Rd4 {[%emt 0:03:37]} e2 {[%emt 0:02:27]} 35. Kd2 {[%emt 0:01:05]} Bf3 {[%emt 0:04:24]} 36. c3 {[%emt 0:00:29]} Bh5 {[%emt 0:01:14]} 37. Re1 {[%emt 0:02:42]} Bf3 {[%emt 0:00:00]} 38. Rg1 {[%emt 0:00:00]} Bh5 {[%emt 0:01:00]} 39. Re1 {[%emt 0:01:00]} Rf1 {[%emt 0:01:58]} 40. Bg5+ {[%emt 0:00:05]} Ke6 {[%emt 0:00:18]} 41. Bh4 {[%emt 0:00:04]} Rc4 {[%emt 0:04:51]} 42. Rxc4 {[%emt 0:01:20]} bxc4 {[%emt 0:00:01]} 43. b3 {[%emt 0:00:43]} Kd5 {[%emt 0:00:08]} 44. Bg3 {[%emt 0:00:50]} Bg4 {[%emt 0:00:34]} 45. Bh4 {[%emt 0:00:13]} Kc5 {[%emt 0:02:56]} 46. Be7+ {[%emt 0:00:25]} Kd5 {[%emt 0:01:16]} 47. Bh4 {[%emt 0:00:01]} Rf3 {[%emt 0:00:08]} 48. Kxe2 {[%emt 0:01:23]} cxb3 {[%emt 0:00:58]} 49. axb3 {[%emt 0:00:51]} Rxc3+ {[%emt 0:00:06]} 50. Kd2 {[%emt 0:00:31]} Rxb3 {[%emt 0:00:07]} 51. Bg3 {[%emt 0:00:05]} Ra3 {[%emt 0:00:45]} 52. Kc2 {[%emt 0:00:52]} h5 {[%emt 0:00:32]} 53. Kb2 {[%emt 0:00:09]} Ra4 {[%emt 0:00:32]} 54. Kb3 {[%emt 0:00:33]} Rd4 {[%emt 0:00:27]} 55. Ra1 {[%emt 0:00:16]} Be2 {[%emt 0:00:25]} 56. Rc1 {[%emt 0:01:02]} Ke4 {[%emt 0:00:11]} 57. Rc5 {[%emt 0:00:25]} Kd3 {[%emt 0:01:21]} 58. Rc6 {[%emt 0:00:30]} a5 {[%emt 0:00:38]} 59. Rd6 {[%emt 0:00:15]} 1/2-1/2

[Event "2nd Gujarat Open 2019"]
[Site "Ahmedabad, Gujarat"]
[Date "2019.09.25"]
[Round "6.21"]
[White "Pandey Srishti"]
[Black "Patil, Pratik"]
[Result "1/2-1/2"]
[ECO "D93"]
[WhiteElo "1928"]
[BlackElo "2187"]
[Annotator "NA"]
[PlyCount "43"]
[EventDate "2019.09.22"]
[EventType "swiss"]
[EventCountry "IND"]
[SourceTitle "playchess.com"]
[Source "ChessBase"]
[SourceQuality "1"]
[TimeControl "5400+30"]

1. d4 {[%emt 0:00:00]} Nf6 {[%emt 0:00:00]} 2. c4 {[%emt 0:00:00]} g6 {[%emt 0:00:00]} 3. Nc3 {[%emt 0:00:00]} d5 {[%emt 0:00:00]} 4. Nf3 {[%emt 0:00:00]} Bg7 {[%emt 0:00:00]} 5. Bf4 {[%emt 0:00:05]} O-O {[%emt 0:00:11]} 6. e3 {[%emt 0:00:03]} c5 {[%emt 0:04:34]} 7. dxc5 {[%emt 0:00:08]} Qa5 {[%emt 0:07:05]} 8. Rc1 {[%emt 0:00:14]} dxc4 {[%emt 0:09:24]} 9. Bxc4 {[%emt 0:00:21]} Nc6 {[%emt 0:03:13]} 10. O-O {[%emt 0:00:24]} Qxc5 {[%emt 0:01:01]} 11. Bb3 {[%emt 0:00:04]} Qa5 {[%emt 0:01:48]} 12. h3 {[%emt 0:00:10]} Bf5 {[%emt 0:10:47]} 13. Qe2 Ne4 {[%emt 0:00:17]} 14. Nd5 {[%emt 0:00:52]} e5 {[%emt 0:02:02]} 15. Rxc6 {[%emt 0:00:03]} exf4 {[%emt 0:04:57]} 16. Rcc1 {[%emt 0:12:58]} fxe3 {[%emt 0:03:52]} 17. Nxe3 {[%emt 0:00:14]} Rfe8 {[%emt 0:05:18]} 18. Rcd1 {[%emt 0:12:50]} Nc5 {[%emt 0:12:25]} 19. Bd5 {[%emt 0:03:36]} Be6 {[%emt 0:02:14]} 20. Ng5 {[%emt 0:08:05]} Bxd5 {[%emt 0:16:17]} 21. Rxd5 {[%emt 0:04:44]} Qb6 {[%emt 0:00:34]} 22. Qc4 1/2-1/2

[Event "2nd Gujarat Open 2019"]
[Site "Ahmedabad, Gujarat"]
[Date "2019.09.25"]
[Round "6.22"]
[White "Siddharth, Jagadeesh"]
[Black "Kumar, Gaurav"]
[Result "1-0"]
[ECO "E06"]
[WhiteElo "2362"]
[BlackElo "2096"]
[Annotator "NA"]
[PlyCount "67"]
[EventDate "2019.09.22"]
[EventType "swiss"]
[EventCountry "IND"]
[SourceTitle "playchess.com"]
[Source "ChessBase"]
[SourceQuality "1"]
[TimeControl "5400+30"]

1. Nf3 {[%emt 0:02:53]} d5 {[%emt 0:00:00]} 2. d4 {[%emt 0:00:10]} Nf6 {[%emt 0:00:00]} 3. c4 {[%emt 0:00:09]} e6 {[%emt 0:00:00]} 4. g3 {[%emt 0:00:10]} Be7 {[%emt 0:00:42]} 5. Bg2 {[%emt 0:00:08]} O-O {[%emt 0:00:02]} 6. Nc3 {[%emt 0:00:11]} dxc4 {[%emt 0:02:05]} 7. Ne5 {[%emt 0:00:06]} c5 {[%emt 0:01:26]} 8. dxc5 {[%emt 0:00:07]} Qxd1+ {[%emt 0:04:59]} 9. Nxd1 {[%emt 0:00:37]} Bxc5 {[%emt 0:04:02]} 10. Nc3 {[%emt 0:00:08]} Nc6 {[%emt 0:00:42]} 11. Nxc4 {[%emt 0:00:07]} Nd4 {[%emt 0:05:19]} 12. O-O {[%emt 0:03:29]} Bb4 {[%emt 0:00:14]} 13. e3 {[%emt 0:03:51]} Bxc3 {[%emt 0:02:36]} 14. bxc3 {[%emt 0:00:40]} Ne2+ {[%emt 0:00:13]} 15. Kh1 {[%emt 0:00:13]} Nxc1 {[%emt 0:06:52]} 16. Rfxc1 {[%emt 0:04:23]} Rb8 {[%emt 0:00:53]} 17. Na5 {[%emt 0:12:01]} b5 {[%emt 0:01:42]} 18. Nc6 {[%emt 0:21:25]} Rb6 {[%emt 0:01:01]} 19. Nxa7 {[%emt 0:03:28]} Bb7 {[%emt 0:00:17]} 20. Rab1 {[%emt 0:01:42]} Ra8 {[%emt 0:10:59]} 21. Nxb5 {[%emt 0:02:48]} Rxa2 {[%emt 0:03:20]} 22. c4 {[%emt 0:02:54]} Ng4 {[%emt 0:04:51]} 23. Bxb7 Nxf2+ {[%emt 0:00:43]} 24. Kg1 {[%emt 0:08:01]} Nh3+ {[%emt 0:00:44]} 25. Kf1 {[%emt 0:01:42]} Rxb7 {[%emt 0:01:07]} 26. c5 {[%emt 0:00:35]} Rf2+ {[%emt 0:11:03]} 27. Ke1 {[%emt 0:00:28]} Rxh2 {[%emt 0:00:07]} 28. c6 {[%emt 0:01:05]} Ng5 {[%emt 0:01:24]} 29. Rc4 {[%emt 0:08:37]} Rc7 {[%emt 0:04:52]} 30. Nxc7 {[%emt 0:00:00]} Rh1+ {[%emt 0:00:30]} 31. Ke2 {[%emt 0:00:00]} Rxb1 {[%emt 0:00:30]} 32. Na6 {[%emt 0:00:00]} Rb2+ {[%emt 0:00:30]} 33. Kd1 {[%emt 0:00:00]} Nh3 {[%emt 0:00:30]} 34. Kc1 {[%emt 0:00:00]} 1-0

[Event "2nd Gujarat Open 2019"]
[Site "Ahmedabad, Gujarat"]
[Date "2019.09.25"]
[Round "6.23"]
[White "Satkar, Chirag"]
[Black "Nitin, S.."]
[Result "0-1"]
[ECO "A43"]
[WhiteElo "2052"]
[BlackElo "2361"]
[Annotator "NA"]
[PlyCount "76"]
[EventDate "2019.09.22"]
[EventType "swiss"]
[EventCountry "IND"]
[SourceTitle "playchess.com"]
[Source "ChessBase"]
[SourceQuality "1"]
[TimeControl "5400+30"]

1. d4 c5 2. d5 d6 3. c4 g6 4. Nc3 Bg7 5. e4 a6 6. Nf3 e6 7. h3 Ne7 8. Bd3 O-O 9. dxe6 fxe6 10. O-O Nbc6 11. Bg5 h6 12. Be3 Nd4 13. Nh2 e5 14. Qd2 Kh7 15. f4 exf4 16. Bxf4 Nec6 17. Kh1 Be6 18. Nd5 Ne5 19. Rad1 b5 20. b3 Rb8 21. Rf2 Qd7 22. Rdf1 bxc4 23. Bxc4 Nxc4 24. bxc4 Bxd5 25. exd5 Nf5 26. Nf3 Rb4 27. Qd3 Qa4 28. Rc1 Bb2 29. Rcc2 Qxa2 30. g4 Rb3 31. Qd2 Qb1+ 32. Ng1 Ng3+ 33. Kg2 Ne4 34. Qe2 Nxf2 35. Qe7+ Bg7 36. Rxf2 Rb7 37. Qxd6 Qe4+ 38. Kg3 g5 0-1

[Event "2nd Gujarat Open 2019"]
[Site "Ahmedabad, Gujarat"]
[Date "2019.09.25"]
[Round "6.24"]
[White "Kavinda, Akila"]
[Black "Srihari L R"]
[Result "0-1"]
[ECO "A04"]
[WhiteElo "2029"]
[BlackElo "2283"]
[Annotator "NA"]
[PlyCount "72"]
[EventDate "2019.09.22"]
[EventType "swiss"]
[EventCountry "IND"]
[SourceTitle "playchess.com"]
[Source "ChessBase"]
[SourceQuality "1"]
[TimeControl "5400+30"]

1. Nf3 d6 2. d4 Nd7 3. g3 Ngf6 4. Bg2 e5 5. O-O c6 6. b3 e4 7. Ng5 d5 8. c4 Be7 9. Nc3 O-O 10. Nh3 Re8 11. cxd5 cxd5 12. f3 Bb4 13. Bb2 exf3 14. exf3 Nf8 15. a3 Bxc3 16. Bxc3 Bxh3 17. Bxh3 Qb6 18. Rb1 h5 19. Qd3 h4 20. Kg2 Ng6 21. Bd2 Nh5 22. Bg4 Nf6 23. Bf5 Ne7 24. Bh3 Nc6 25. Be3 hxg3 26. hxg3 Re7 27. Bf2 Rae8 28. Rb2 Na5 29. Rfb1 Qd6 30. a4 g6 31. Qd2 Qb6 32. Qh6 Re2 33. Be6 R8xe6 34. Rh1 Nh5 35. Rxe2 Rxe2 36. Rxh5 gxh5 0-1

[Event "2nd Gujarat Open 2019"]
[Site "Ahmedabad, Gujarat"]
[Date "2019.09.25"]
[Round "6.25"]
[White "Abu Sufian, Shakil"]
[Black "Katdare, Jayant C"]
[Result "1-0"]
[ECO "B57"]
[WhiteElo "2255"]
[BlackElo "2046"]
[Annotator "NA"]
[PlyCount "138"]
[EventDate "2019.09.22"]
[EventType "swiss"]
[EventCountry "IND"]
[SourceTitle "playchess.com"]
[Source "ChessBase"]
[SourceQuality "1"]
[TimeControl "5400+30"]

1. e4 {[%emt 0:00:00]} c5 {[%emt 0:00:00]} 2. Nf3 {[%emt 0:00:00]} d6 {[%emt 0:00:03]} 3. d4 {[%emt 0:00:00]} cxd4 {[%emt 0:00:08]} 4. Nxd4 {[%emt 0:00:00]} Nf6 {[%emt 0:00:16]} 5. Nc3 {[%emt 0:00:00]} Nc6 {[%emt 0:00:10]} 6. Bc4 {[%emt 0:00:14]} Qb6 {[%emt 0:00:44]} 7. Nb3 {[%emt 0:00:14]} e6 {[%emt 0:00:20]} 8. Be3 {[%emt 0:00:06]} Qc7 {[%emt 0:00:30]} 9. Bd3 {[%emt 0:00:21]} a6 {[%emt 0:00:48]} 10. a4 {[%emt 0:00:12]} b6 {[%emt 0:02:15]} 11. f4 {[%emt 0:00:30]} Be7 {[%emt 0:02:03]} 12. O-O {[%emt 0:01:17]} Bb7 {[%emt 0:02:13]} 13. Kh1 {[%emt 0:07:40]} O-O {[%emt 0:05:44]} 14. Qe2 {[%emt 0:08:39]} Rfe8 {[%emt 0:07:10]} 15. Nd4 {[%emt 0:07:05]} Nxd4 {[%emt 0:13:52]} 16. Bxd4 {[%emt 0:00:02]} e5 {[%emt 0:00:15]} 17. fxe5 {[%emt 0:02:02]} dxe5 {[%emt 0:00:08]} 18. Be3 {[%emt 0:01:26]} Rec8 {[%emt 0:14:48]} 19. Bg5 {[%emt 0:02:53]} a5 {[%emt 0:11:02]} 20. Rad1 {[%emt 0:10:48]} h6 {[%emt 0:08:09]} 21. Bxf6 {[%emt 0:00:50]} Bxf6 {[%emt 0:00:02]} 22. Nb5 {[%emt 0:09:20]} Qc6 {[%emt 0:04:33]} 23. b3 {[%emt 0:01:18]} Rd8 {[%emt 0:02:31]} 24. Rde1 {[%emt 0:01:47]} Bc8 {[%emt 0:02:00]} 25. Bc4 {[%emt 0:07:30]} Be6 {[%emt 0:06:19]} 26. Bxe6 {[%emt 0:00:27]} fxe6 {[%emt 0:00:05]} 27. Na3 {[%emt 0:01:36]} Rd4 {[%emt 0:02:17]} 28. Nc4 {[%emt 0:03:02]} Rc8 {[%emt 0:01:00]} 29. Qh5 {[%emt 0:08:25]} Rxc4 {[%emt 0:05:34]} 30. bxc4 {[%emt 0:00:03]} Rf8 {[%emt 0:00:30]} 31. Qe2 {[%emt 0:07:41]} Qxa4 {[%emt 0:00:37]} 32. Rb1 {[%emt 0:00:27]} Qc6 {[%emt 0:02:04]} 33. Rb5 {[%emt 0:01:43]} a4 {[%emt 0:03:24]} 34. c5 {[%emt 0:00:59]} bxc5 {[%emt 0:00:11]} 35. Qc4 {[%emt 0:00:11]} Ra8 {[%emt 0:00:29]} 36. Rxc5 {[%emt 0:04:47]} Qa6 37. Qxa6 {[%emt 0:01:06]} Rxa6 {[%emt 0:00:49]} 38. Ra1 {[%emt 0:00:07]} Be7 {[%emt 0:00:52]} 39. Rb5 {[%emt 0:04:23]} a3 {[%emt 0:01:44]} 40. Ra2 {[%emt 0:00:09]} Rd6 {[%emt 0:02:07]} 41. Kg1 {[%emt 0:00:19]} Rd2 {[%emt 0:00:12]} 42. Kf1 {[%emt 0:00:55]} Kf7 {[%emt 0:00:16]} 43. Rb3 {[%emt 0:01:19]} Bc5 {[%emt 0:00:29]} 44. Rf3+ {[%emt 0:00:16]} Ke7 {[%emt 0:00:09]} 45. h4 {[%emt 0:00:27]} Rd4 {[%emt 0:00:26]} 46. Rc3 {[%emt 0:02:01]} Bd6 {[%emt 0:00:27]} 47. Re3 {[%emt 0:00:22]} Bc5 {[%emt 0:00:21]} 48. Ke1 {[%emt 0:04:39]} Ra4 {[%emt 0:01:18]} 49. Re2 {[%emt 0:00:13]} Bd4 {[%emt 0:00:34]} 50. Kd2 {[%emt 0:00:14]} Kd6 {[%emt 0:00:48]} 51. c3 {[%emt 0:00:10]} Bc5 {[%emt 0:00:08]} 52. Kc2 {[%emt 0:00:17]} Kc6 {[%emt 0:00:39]} 53. Kb3 {[%emt 0:00:06]} Ra7 {[%emt 0:00:07]} 54. Rad2 {[%emt 0:01:42]} Rb7+ {[%emt 0:00:13]} 55. Kc4 {[%emt 0:01:39]} Ra7 {[%emt 0:00:41]} 56. h5 {[%emt 0:00:38]} Ra4+ {[%emt 0:00:49]} 57. Kb3 {[%emt 0:00:01]} Ra7 {[%emt 0:00:04]} 58. Rd8 {[%emt 0:01:08]} Be7 {[%emt 0:01:15]} 59. Rc8+ {[%emt 0:00:47]} Kb6 {[%emt 0:01:11]} 60. Rd2 {[%emt 0:00:57]} Rb7 {[%emt 0:00:36]} 61. Rg8 {[%emt 0:01:02]} Bc5 {[%emt 0:01:16]} 62. Rgd8 {[%emt 0:01:22]} Kc6+ {[%emt 0:00:29]} 63. Ka2 {[%emt 0:00:38]} Be7 {[%emt 0:00:10]} 64. Rg8 {[%emt 0:00:42]} Bd6 {[%emt 0:00:15]} 65. Rc8+ {[%emt 0:00:32]} Kd7 {[%emt 0:00:23]} 66. Rg8 {[%emt 0:00:19]} Kc6 {[%emt 0:00:02]} 67. Rc8+ {[%emt 0:00:02]} Kd7 {[%emt 0:00:08]} 68. Ra8 {[%emt 0:00:34]} Kc7 {[%emt 0:00:19]} 69. Ra6 {[%emt 0:00:19]} Bb4 1-0